bitfinex-derivatives/quotes_ETHF0:USTF0_20260226
["timestamp","ask_amount","ask_price","bid_price","bid_amount"]
[1772121369222,2.33206568,2031.9,2030.7,2.22255523]
[1772121369525,4.04725391,2032.6,2030.7,2.22255523]
[1772121369526,2.30908524,2032.1,2031.1,2.31138379]
[1772121369723,2.30908524,2032.5,2031.3,2.31138379]
[1772121372732,2.30908524,2032.3,2031.3,2.31138379]
[1772121375638,2.30908524,2032.5,2031.5,2.31138379]
[1772121375933,2.55507524,2032.5,2031.5,2.31138379]
[1772121379440,2.55507524,2032.5,2031.3,2.31138379]
[1772121379836,2.30908524,2032.0,2030.9,2.31138379]
[1772121380837,2.30908524,2031.8,2030.8,7.701]
[1772121381036,2.30908524,2031.8,2030.7,2.31138379]
[1772121381237,2.30908524,2031.6,2030.5,2.31612024]
[1772121381644,2.30908524,2031.9,2030.5,2.31612024]
[1772121381940,2.30908524,2031.7,2030.5,2.31612024]
[1772121383342,2.55518524,2031.7,2030.5,2.31612024]
[1772121383738,1.83102656,2031.8,2030.5,0.00473645]
[1772121383739,2.30908524,2031.2,2030.5,0.00473645]
[1772121383943,2.31256212,2031.2,2030.5,2.31612024]
[1772121387641,2.31256212,2031.2,2030.5,0.00473645]
[1772121388540,2.31256212,2031.2,2030.5,2.31612024]
[1772121389446,2.30908524,2031.0,2030.1,2.31138379]
[1772121389647,2.30908524,2030.8,2029.9,2.31138379]
[1772121390547,2.30908524,2030.8,2029.9,2.31749333]
[1772121390738,2.30908524,2031.0,2029.9,2.31749333]
[1772121393749,2.55525524,2031.0,2029.9,2.31749333]
[1772121394544,2.30908524,2031.0,2029.9,2.31749333]
[1772121395347,2.31256212,2031.2,2030.2,2.31138379]
[1772121395547,0.00347688,2031.2,2030.4,2.31138379]
[1772121396046,2.30908524,2031.7,2030.6,2.31138379]
[1772121396444,2.30908524,2031.5,2030.6,2.31138379]
[1772121396659,2.30908524,2031.5,2030.4,2.31138379]
[1772121396945,2.30908524,2031.1,2030.2,2.31138379]
[1772121400854,2.30908524,2031.1,2029.9,0.00610954]
[1772121400855,2.30908524,2031.1,2030.0,2.18480387]
[1772121401457,2.2432534,2030.9,2029.9,0.00610954]
[1772121401753,2.2432534,2030.7,2029.9,0.00610954]
[1772121402954,2.2432534,2030.7,2029.9,2.19091341]
[1772121403251,1.83102656,2031.2,2029.9,2.19091341]
[1772121403252,2.2432534,2031.2,2029.9,2.19091341]
[1772121405356,2.2432534,2031.0,2029.9,2.19091341]
[1772121405953,2.2432534,2031.2,2030.3,2.18480387]
[1772121406149,2.4894034,2031.2,2030.0,2.18480387]
[1772121406355,2.2432534,2031.0,2030.0,2.18480387]
[1772121406557,2.2432534,2030.8,2030.0,2.18480387]
[1772121409360,2.2432534,2030.8,2029.9,0.00610954]
[1772121409558,2.2432534,2030.8,2029.9,2.19091341]
[1772121410863,2.2432534,2031.3,2029.9,2.19091341]
[1772121411059,2.2432534,2031.1,2029.9,2.19091341]
[1772121413362,2.2432534,2030.9,2029.9,2.19091341]
[1772121413757,0.00348494,2031.5,2030.3,2.18480387]
[1772121413758,2.2432534,2031.3,2030.3,2.18480387]
[1772121415161,2.24673834,2031.5,2030.3,2.18480387]
[1772121415461,2.24673834,2031.5,2030.5,2.18480387]
[1772121415666,0.00348494,2031.5,2030.5,2.18480387]
[1772121415862,0.00348494,2031.5,2030.7,2.18480387]
[1772121416062,2.2432534,2031.8,2030.7,2.18480387]
[1772121416861,2.2432534,2031.6,2030.7,2.18480387]
[1772121417166,2.24879042,2031.6,2030.7,2.18480387]
[1772121419856,2.24879042,2031.6,2030.4,2.18480387]
[1772121420467,2.24879042,2031.6,2029.9,0.00610954]
[1772121420468,6.05684,2030.7,2029.9,0.00610954]
[1772121420666,0.31498836,2030.5,2029.3,2.23405095]
[1772121420863,0.29027511,2030.1,2029.4,0.00610954]
[1772121421064,0.29027511,2030.1,2029.1,2.24640758]
[1772121421260,0.29027511,2030.3,2029.2,2.25251712]
[1772121421458,0.29027511,2030.3,2029.2,2.24640758]
[1772121421662,0.2951367,2030.3,2029.3,0.00610954]
[1772121421858,0.00486159,2030.3,2029.4,2.2460014]
[1772121422259,0.00486159,2030.3,2029.6,2.2460014]
[1772121422461,0.28128857,2030.9,2029.6,2.2460014]
[1772121423571,0.28597043,2030.9,2029.6,2.2460014]
[1772121424566,0.00468186,2030.9,2029.8,2.25368318]
[1772121424966,0.00468186,2030.9,2030.0,2.25649863]
[1772121425272,0.23124921,2030.8,2030.0,2.25649863]
[1772121425974,0.23124921,2030.8,2030.0,2.26260817]
[1772121427465,0.22505914,2030.6,2030.0,0.00610954]
[1772121427671,0.20553289,2030.4,2029.5,2.23728517]
[1772121428467,0.24623,2030.5,2029.5,2.23728517]
[1772121428974,0.43966381,2030.5,2029.5,2.23728517]
[1772121429476,0.18986326,2030.4,2029.5,2.23728517]
[1772121430867,0.64210665,2030.0,2029.3,2.18537745]
[1772121431074,0.75562699,2029.8,2029.2,0.0062636]
[1772121431478,0.75562699,2029.4,2028.7,2.18537745]
[1772121432478,0.76026963,2029.4,2028.7,2.19022413]
[1772121432975,0.76799539,2029.2,2028.7,0.00484668]
[1772121433186,0.76799539,2029.2,2028.5,2.18537745]
[1772121433774,1.24286385,2028.8,2027.7,2.18537745]
[1772121433978,1.48931385,2028.7,2027.7,2.18537745]
[1772121434178,1.48931385,2028.7,2027.7,2.19083628]
[1772121435576,0.24645,2028.7,2027.7,2.19083628]
[1772121436075,1.48762491,2028.7,2027.7,2.19083628]
[1772121436473,1.48767491,2028.3,2027.5,2.18537745]
[1772121436673,1.23224945,2028.7,2027.5,2.18537745]
[1772121437072,1.47868945,2028.9,2027.5,2.18537745]
[1772121437579,1.47868945,2028.9,2027.5,2.19034177]
[1772121438379,1.21130544,2028.6,2027.5,2.19034177]
[1772121438577,1.43171366,2028.7,2027.5,2.19034177]
[1772121438977,1.15681544,2029.1,2027.5,2.19034177]
[1772121439375,1.15681544,2028.9,2027.5,2.19034177]
[1772121439772,1.13309983,2028.7,2027.5,2.19034177]
[1772121440981,1.35623715,2029.3,2027.7,2.18537745]
[1772121441377,0.00464264,2029.4,2027.9,2.18537745]
[1772121441579,1.11449979,2029.4,2028.1,2.18537745]
[1772121444186,0.00464264,2029.4,2028.3,2.18537745]
[1772121444679,1.25895682,2030.1,2028.5,2.18537745]
[1772121445482,1.25895682,2030.1,2028.7,2.18537745]
[1772121445687,1.26423509,2030.1,2028.7,2.18537745]
[1772121446080,0.00527827,2030.1,2028.9,2.18537745]
[1772121446288,19.35389,2031.1,2028.8,0.24644]
[1772121446289,0.99034136,2031.0,2029.3,2.18537745]
[1772121446480,0.99034136,2030.8,2029.5,2.18537745]
[1772121447285,0.99383553,2030.8,2029.5,2.18890371]
[1772121448788,0.00349417,2030.8,2029.5,2.18890371]
[1772121449289,0.00349417,2030.8,2029.7,2.18537745]
[1772121449490,0.91711762,2031.5,2029.9,2.18537745]
[1772121449691,0.91711762,2031.7,2030.1,2.18537745]
[1772121449891,0.91711762,2031.7,2030.3,2.18537745]
[1772121450093,0.89541607,2031.5,2030.3,2.18537745]
[1772121450581,0.90079664,2031.5,2030.3,2.18537745]
[1772121451089,0.24615,2031.2,2030.3,2.18537745]
[1772121451288,0.87549334,2031.1,2030.3,2.18537745]
[1772121451593,0.87549334,2031.1,2029.9,2.18537745]
[1772121452388,0.85384597,2030.7,2029.9,2.18537745]
[1772121453284,0.86248505,2030.8,2029.9,2.18537745]
[1772121453490,0.86248505,2030.8,2029.7,2.18537745]
[1772121453895,0.84098104,2030.6,2029.7,2.18537745]
[1772121454888,0.24621,2030.7,2029.7,2.18537745]
[1772121455092,0.8192722,2030.8,2029.7,2.18537745]
[1772121455390,0.8192722,2031.2,2029.7,2.18537745]
[1772121456495,0.24614,2031.3,2029.7,2.18537745]
[1772121456692,0.98378061,2031.3,2029.7,2.18537745]
[1772121456992,0.98380061,2031.1,2029.7,2.18537745]
[1772121457200,0.73764061,2031.0,2029.7,2.18537745]
[1772121458896,0.00538057,2031.5,2029.8,1.84839141]
[1772121459090,0.69120054,2031.5,2029.8,1.84839141]
[1772121459296,0.00538057,2031.5,2030.0,1.84839141]
[1772121459490,0.00538057,2031.5,2030.2,1.84839141]
[1772121459896,0.66302502,2031.5,2030.2,1.84839141]
[1772121461992,0.00538057,2031.5,2030.2,1.84839141]
[1772121462197,0.00538057,2031.5,2030.4,1.81320101]
[1772121462391,0.58155023,2032.1,2030.4,1.81320101]
[1772121462592,2.23736245,2032.2,2030.2,0.221627]
[1772121462593,2.23736245,2032.2,2030.8,1.81320101]
[1772121462793,2.23736245,2032.2,2030.9,7.493]
[1772121463000,1.83298118,2033.0,2031.0,1.81320101]
[1772121463001,0.24597,2032.7,2031.0,1.81320101]
[1772121463193,0.56918184,2032.6,2031.0,1.81320101]
[1772121463398,0.56918184,2032.6,2031.2,1.81320101]
[1772121463598,0.00391938,2032.6,2031.2,1.81702523]
[1772121464198,0.55358074,2032.6,2031.2,1.81702523]
[1772121465104,0.24599,2032.5,2031.2,1.81702523]
[1772121465397,0.53706631,2032.4,2031.2,1.81702523]
[1772121465800,0.24601,2032.3,2031.2,1.81702523]
[1772121466004,0.51778154,2032.2,2031.2,1.81702523]
[1772121466703,0.24604,2032.1,2031.2,1.81702523]
[1772121467001,0.50488873,2031.8,2031.0,1.81320101]
[1772121467999,0.50488873,2031.8,2031.0,1.81828231]
[1772121468600,0.48610942,2032.3,2031.0,1.81828231]
[1772121468998,0.24601,2032.4,2031.0,1.81828231]
[1772121469208,0.48178952,2032.3,2031.0,1.81828231]
[1772121469602,0.48178952,2032.1,2031.0,1.81828231]
[1772121469802,0.46292275,2031.9,2031.0,1.81828231]
[1772121470204,0.46292275,2032.4,2031.0,1.81828231]
[1772121472004,0.00391938,2032.6,2031.0,1.81828231]
[1772121472306,0.00391938,2032.6,2031.6,1.81320101]
[1772121473715,0.54060708,2033.8,2032.0,1.81320101]
[1772121473904,0.54060708,2033.8,2032.2,1.81320101]
[1772121474508,0.54060708,2033.6,2032.2,1.81320101]
[1772121474813,0.51892779,2033.0,2032.0,1.81320101]
[1772121475206,0.51892779,2032.8,2032.0,1.81320101]
[1772121475704,0.24594,2032.9,2032.0,1.81320101]
[1772121477108,0.44655345,2033.3,2032.0,1.81320101]
[1772121478314,0.42809938,2033.5,2032.0,1.81320101]
[1772121478810,0.39732859,2033.4,2032.0,1.81320101]
[1772121479211,6.0537804,2033.8,2032.0,1.81320101]
[1772121479212,0.0060104,2033.8,2032.3,1.81320101]
[1772121479419,0.0060104,2033.8,2032.7,1.81320101]
[1772121479715,0.0060104,2033.8,2032.7,1.81722266]
[1772121480514,0.0060104,2033.8,2032.9,1.81320101]
[1772121481008,0.36154464,2033.8,2032.9,1.81320101]
[1772121481410,0.35553424,2033.6,2032.7,1.81722266]
[1772121481613,0.35553424,2033.4,2032.7,1.81722266]
[1772121481815,0.58356209,2033.3,2032.7,0.00402165]
[1772121482118,0.33767209,2033.2,2032.5,1.81320101]
[1772121482617,0.33767209,2033.0,2032.1,1.81320101]
[1772121482818,0.33558902,2033.2,2032.1,1.81320101]
[1772121483010,0.33558902,2033.6,2032.1,1.81831544]
[1772121483315,0.33558902,2034.0,2032.3,1.81320101]
[1772121483713,0.24581,2034.1,2032.5,3.64128946]
[1772121483910,0.24581,2034.1,2032.6,1.81320101]
[1772121485311,0.2956758,2033.8,2032.6,1.81320101]
[1772121485516,0.5355054,2033.7,2032.6,1.81320101]
[1772121486211,0.0060104,2033.8,2032.9,1.81320101]
[1772121486418,0.76382413,2034.7,2033.2,1.81320101]
[1772121486616,0.24569,2035.0,2033.2,1.81320101]
[1772121486818,0.75267875,2035.0,2033.3,1.81320101]
[1772121487014,0.50698875,2034.9,2033.3,1.81320101]
[1772121487214,0.50698875,2034.7,2033.3,1.81320101]
[1772121487417,0.51162244,2034.7,2033.3,1.81320101]
[1772121487617,0.00463369,2034.7,2033.3,1.81320101]
[1772121488617,0.49443973,2034.7,2033.3,1.81320101]
[1772121488813,0.48169567,2034.5,2033.3,1.81320101]
[1772121489516,0.47697238,2034.2,2033.3,1.81320101]
[1772121492317,0.42223976,2033.9,2033.1,1.61194757]
[1772121493021,0.24586,2033.6,2032.9,1.61194757]
[1772121493219,0.67015789,2033.6,2032.9,1.61194757]
[1772121493414,0.43568886,2033.3,2032.2,1.61194757]
[1772121493617,2.07396845,2033.4,2032.2,1.61194757]
[1772121493618,0.24588,2033.4,2032.2,1.61194757]
[1772121494816,0.39651068,2033.7,2032.2,1.61194757]
[1772121495221,0.39651068,2033.5,2032.2,1.61194757]
[1772121495619,0.64239068,2033.4,2032.2,1.61194757]
[1772121495924,41.18081162,2033.9,2032.2,1.61194757]
[1772121496122,0.38081162,2033.7,2032.2,1.61194757]
[1772121497216,0.59718619,2033.9,2032.3,1.61194757]
[1772121497527,0.24582,2033.9,2032.3,1.85795757]
[1772121497727,0.35136619,2034.2,2032.6,1.85792757]
[1772121497918,0.58171421,2034.2,2032.6,1.85792757]
[1772121498625,0.33593421,2033.4,2032.6,1.61194757]
[1772121500220,0.24587,2033.5,2032.6,1.61194757]
[1772121500426,0.27927965,2033.7,2032.6,1.61194757]
[1772121500727,0.54347494,2033.6,2032.6,1.61194757]
[1772121500925,0.54347494,2033.5,2032.6,1.61194757]
[1772121501129,7.26069192,2033.8,2032.6,1.61194757]
[1772121501430,0.54392165,2033.7,2032.6,1.61194757]
[1772121501626,0.49871127,2034.0,2032.6,1.61194757]
[1772121501819,0.54392255,2033.9,2032.6,1.61194757]
[1772121502024,7.23582,2034.0,2032.6,1.61194757]
[1772121502025,0.54392255,2033.8,2032.6,1.61194757]
[1772121502317,7.23582,2034.0,2032.6,1.61194757]
[1772121502518,0.54422074,2033.9,2032.6,1.61194757]
[1772121502722,0.54422074,2033.8,2032.6,1.61194757]
[1772121502927,0.47565683,2034.0,2032.6,1.61194757]
[1772121503127,0.54446953,2033.9,2032.6,1.61194757]
[1772121503329,0.47565683,2034.0,2032.6,1.61194757]
[1772121503528,0.54458672,2033.9,2032.6,1.61194757]
[1772121503731,0.21422967,2033.7,2032.6,1.61194757]
[1772121503930,0.24586,2033.6,2032.6,1.61194757]
[1772121504832,0.5341722,2033.6,2032.6,1.61194757]
[1772121505530,0.2883122,2033.3,2032.6,1.61194757]
[1772121506130,0.27363085,2033.1,2032.4,1.61194757]
[1772121506332,0.27781885,2033.1,2032.4,1.61194757]
[1772121506839,0.004188,2033.1,2032.4,1.61194757]
[1772121508129,0.75071406,2032.9,2032.2,1.61194757]
[1772121508330,0.99666406,2032.8,2032.2,1.61194757]
[1772121508735,6.974188,2033.1,2032.2,1.61194757]
[1772121508931,0.54515529,2033.0,2032.2,1.61194757]
[1772121509134,6.974188,2033.1,2032.2,1.61194757]
[1772121509436,0.004188,2033.1,2032.2,1.61194757]
[1772121511440,0.75011804,2033.1,2032.2,1.61194757]
[1772121513739,0.004188,2033.1,2032.2,1.61194757]
[1772121514142,7.90617652,2033.7,2032.2,1.61194757]
[1772121514143,0.9523784,2033.8,2032.3,1.61194757]
[1772121514342,7.6667264,2034.1,2032.5,1.61194757]
[1772121514541,6.7320189,2034.0,2032.5,1.61194757]
[1772121514842,0.79136884,2033.9,2032.5,1.61194757]
[1772121515031,0.54554884,2033.8,2032.5,1.61194757]
[1772121515232,0.54925663,2033.8,2032.5,1.61194757]
[1772121515437,0.00370779,2033.8,2032.5,1.61194757]
[1772121516034,0.93463367,2033.7,2032.5,1.61194757]
[1772121516244,0.68879367,2033.6,2032.5,1.61194757]
[1772121516445,2.51688212,2033.6,2032.5,1.61194757]
[1772121516744,0.68879367,2033.6,2032.5,1.61194757]
[1772121517141,0.93223961,2033.5,2032.5,1.61194757]
[1772121517341,0.24587,2033.5,2032.5,1.61194757]
[1772121518341,0.00370779,2033.8,2032.5,1.61194757]
[1772121518546,0.00370779,2033.8,2032.7,1.40203235]
[1772121519839,0.6487452,2033.6,2032.7,1.40203235]
[1772121520734,0.63734785,2033.4,2032.7,1.40203235]
[1772121520935,0.24587,2033.5,2032.7,1.40203235]
[1772121521137,0.88321785,2033.5,2032.7,1.40203235]
[1772121521337,0.63734785,2033.3,2032.3,1.46831291]
[1772121521541,0.88327785,2033.0,2032.3,1.46831291]
[1772121521745,0.6261039,2032.9,2032.3,1.46831291]
[1772121522645,0.24593,2033.0,2032.3,1.46831291]
[1772121526653,0.24588,2033.4,2032.3,1.46831291]
[1772121526951,0.53407247,2033.3,2032.3,1.46831291]
[1772121527152,0.53407247,2033.2,2032.3,1.46831291]
[1772121527450,0.24588,2033.4,2032.3,1.46831291]
[1772121527749,0.5342523,2033.3,2032.3,1.46831291]
[1772121527949,0.5342523,2033.2,2032.3,1.46831291]
[1772121528150,0.77878924,2033.4,2032.3,1.46831291]
[1772121528346,0.77881924,2033.2,2032.3,1.46831291]
[1772121528546,7.45090924,2033.5,2032.3,1.46831291]
[1772121528746,6.69475767,2033.4,2032.3,1.46831291]
[1772121528952,0.00370779,2033.8,2032.4,1.46831291]
[1772121530448,0.00370779,2033.8,2032.6,1.46831291]
[1772121531852,1.04011819,2033.8,2032.6,1.46831291]
[1772121534054,0.00370779,2033.8,2032.6,3.29640136]
[1772121534254,0.00370779,2033.8,2032.7,1.46831291]
[1772121535257,1.00713189,2033.8,2032.7,1.46831291]
[1772121538058,0.97985035,2033.6,2032.7,1.46831291]
[1772121538251,1.22939814,2033.8,2032.7,1.46831291]
[1772121539559,0.00370779,2033.8,2032.7,1.46831291]
[1772121540458,4.02071984,2034.6,2033.3,1.46831291]
[1772121540753,13.88778787,2035.3,2033.3,1.46831291]
[1772121540754,0.96375644,2035.1,2033.5,1.46831291]
[1772121540953,1.49444984,2035.0,2033.7,1.46831291]
[1772121541156,1.56809752,2035.3,2033.7,1.46831291]
[1772121541560,1.57360417,2035.3,2033.7,1.4720624]
[1772121541763,2.52709652,2035.3,2033.7,1.4720624]
[1772121542062,0.95349235,2035.0,2033.7,1.4720624]
[1772121542356,0.95349235,2034.8,2033.7,1.4720624]
[1772121543359,0.94831895,2035.2,2033.7,1.4720624]
[1772121543562,1.19398895,2035.2,2033.7,1.4720624]
[1772121543763,0.93814517,2035.1,2033.7,1.4720624]
[1772121544559,6.04874665,2035.3,2033.7,1.4720624]
[1772121544765,0.93814517,2035.1,2033.7,1.4720624]
[1772121544954,1.19438487,2035.3,2033.7,1.4720624]
[1772121545160,0.94321822,2035.2,2033.7,1.4720624]
[1772121546358,1.17875851,2035.1,2033.7,1.4720624]
[1772121547660,0.94354073,2034.8,2033.7,1.4720624]
[1772121547862,6.04346,2035.2,2033.7,1.4720624]
[1772121547863,0.93341408,2034.6,2033.7,1.4720624]
[1772121548465,1.17916408,2034.5,2033.7,1.4720624]
[1772121548666,0.9229362,2034.5,2033.7,1.4720624]
[1772121550575,0.91031283,2034.7,2033.7,1.4720624]
[1772121551877,0.85923749,2034.6,2033.7,1.4720624]
[1772121552475,0.85923749,2035.1,2033.7,1.4720624]
[1772121553474,0.85101604,2035.1,2033.7,1.4720624]
[1772121555774,0.81697346,2034.9,2033.7,1.4720624]
[1772121555975,0.81697346,2034.7,2033.7,1.4720624]
[1772121556169,0.81697346,2034.5,2033.7,1.4720624]
[1772121557768,1.03035053,2034.4,2033.7,1.4720624]
[1772121560374,0.7623041,2034.3,2033.7,0.00374949]
[1772121560574,0.7623041,2034.3,2033.7,1.23836276]
[1772121560978,0.7623041,2034.3,2033.5,1.23461327]
[1772121561175,0.24576,2034.4,2033.5,1.23461327]
[1772121562074,0.75097356,2034.5,2033.5,1.23730927]
[1772121562774,0.24571,2034.8,2033.5,1.23730927]
[1772121562975,0.98107018,2034.8,2033.5,1.23730927]
[1772121563175,0.73536018,2034.8,2033.5,1.23730927]
[1772121563371,6.802,2035.0,2033.6,0.24586]
[1772121563372,0.73536018,2035.0,2033.6,0.24586]
[1772121563578,0.98102018,2035.2,2033.7,1.23461327]
[1772121563781,0.49883945,2035.1,2033.7,1.23461327]
[1772121563981,0.72615068,2035.1,2033.7,1.23461327]
[1772121565078,0.49902921,2035.0,2033.7,1.23461327]
[1772121565278,0.72615068,2035.1,2033.7,1.23461327]
[1772121565478,0.7066472,2035.0,2033.7,1.23461327]
[1772121565680,0.7066472,2034.9,2033.7,1.23461327]
[1772121565883,0.69755819,2034.8,2033.7,1.23461327]
[1772121567375,0.24571,2034.9,2033.7,1.23461327]
[1772121568881,0.68351066,2035.2,2033.7,1.23461327]
[1772121569184,6.63841696,2035.1,2033.7,1.23461327]
[1772121569485,0.50021905,2035.0,2033.7,1.23461327]
[1772121569785,0.68351066,2035.2,2033.7,1.23461327]
[1772121569984,0.50059217,2035.1,2033.7,1.23461327]
[1772121570183,0.50059217,2035.0,2033.7,1.23461327]
[1772121570479,0.68351066,2035.2,2033.7,1.23461327]
[1772121570684,0.50038069,2035.1,2033.7,1.23461327]
[1772121570980,0.50038069,2035.0,2033.7,1.23461327]
[1772121571181,0.68351066,2035.2,2033.9,1.23461327]
[1772121571381,0.50043533,2035.1,2033.9,1.23461327]
[1772121571582,0.62031203,2034.7,2033.9,1.23461327]
[1772121571879,0.61158277,2034.5,2033.9,1.23461327]
[1772121572688,0.84791798,2034.6,2033.9,1.23461327]
[1772121574281,0.59144246,2034.5,2033.6,1.23461327]
[1772121575587,0.57114665,2034.1,2033.4,1.23461327]
[1772121576687,0.56262366,2034.3,2033.4,1.2403548]
[1772121576888,0.55570445,2034.6,2033.4,1.2403548]
[1772121577083,0.55570445,2034.4,2033.4,1.2403548]
[1772121577388,1.05626866,2034.3,2033.4,1.2403548]
[1772121577588,0.55570445,2034.3,2033.4,1.2403548]
[1772121579987,0.51834325,2034.5,2033.4,1.2403548]
[1772121580191,1.01888098,2034.4,2033.4,1.2403548]
[1772121580492,0.51834325,2034.4,2033.4,1.2403548]
[1772121584295,0.49216189,2034.3,2033.4,1.2403548]
[1772121585094,0.24577,2034.4,2033.4,1.2403548]
[1772121585395,0.7125426,2034.4,2033.4,1.2403548]
[1772121585593,0.4667726,2034.3,2033.4,1.2403548]
[1772121586295,0.45869777,2034.1,2033.4,1.2403548]
[1772121586491,0.45869777,2033.7,2032.4,1.10981391]
[1772121586688,0.45029533,2033.5,2032.4,1.10981391]
[1772121586888,6.713,2033.9,2032.4,1.10981391]
[1772121586889,0.44299933,2033.3,2032.4,1.10981391]
[1772121587591,0.24593,2033.0,2032.1,1.10981391]
[1772121587797,0.44299933,2032.9,2032.1,1.10981391]
[1772121588097,0.44299933,2032.9,2031.3,1.10981391]
[1772121588298,0.43953545,2033.3,2031.5,1.10981391]
[1772121588802,0.43953545,2033.3,2031.5,1.11416892]
[1772121588996,0.24593,2033.0,2031.5,1.11416892]
[1772121589198,5.8671265,2033.2,2031.5,1.11416892]
[1772121589392,0.00425124,2033.3,2031.7,1.10981391]
[1772121589588,0.00425124,2033.3,2031.8,1.10981391]
[1772121589791,0.00425124,2033.3,2032.0,1.10981391]
[1772121594395,0.00425124,2033.3,2032.2,1.10981391]
[1772121594891,0.46049752,2033.9,2032.2,1.10981391]
[1772121595096,0.24583,2033.8,2032.2,1.10981391]
[1772121595296,0.46049752,2033.7,2032.2,1.10981391]
[1772121595900,0.69862076,2033.8,2032.2,1.10981391]
[1772121596095,0.45676552,2033.7,2032.2,1.10981391]
[1772121596698,0.24586,2033.6,2032.2,1.10981391]
[1772121596901,0.4592128,2033.5,2032.2,1.10981391]
[1772121599098,0.00397476,2033.7,2032.4,1.10981391]
[1772121599699,0.00397476,2033.7,2032.6,1.10981391]
[1772121600697,0.2458,2034.1,2032.6,1.10981391]
[1772121601102,0.67840367,2034.1,2032.6,1.10981391]
[1772121601299,0.2458,2034.1,2032.6,1.10981391]
[1772121602002,44.8571351,2034.7,2032.6,1.10981391]
[1772121602202,4.0571351,2034.7,2032.6,1.10981391]
[1772121602904,0.41664414,2034.5,2032.6,1.10981391]
[1772121603104,0.41664414,2034.3,2032.6,1.10981391]
[1772121603607,0.41664414,2034.6,2033.0,1.10981391]
[1772121603802,0.40883302,2034.4,2033.0,1.11583373]
[1772121604406,44.86136867,2034.7,2033.1,6.53179935]
[1772121604407,4.06136867,2034.7,2033.1,6.53179935]
[1772121604701,0.39760653,2034.3,2033.2,1.10981391]
[1772121604902,0.24581,2034.0,2033.2,1.10981391]
[1772121605209,0.39760653,2033.7,2033.0,1.11583373]
[1772121605404,0.24583,2033.8,2033.0,1.11583373]
[1772121605704,0.2458,2034.1,2033.0,1.11583373]
[1772121606006,0.24582,2033.9,2033.0,1.11583373]
[1772121606304,6.04613,2034.3,2033.0,1.11583373]
[1772121606305,6.09161513,2034.3,2033.0,1.11583373]
[1772121606505,2.97924423,2034.3,2033.4,1.10981391]
[1772121606811,5.22011779,2034.7,2033.4,1.10981391]
[1772121607602,5.22011779,2034.7,2033.5,0.24587]
[1772121607797,4.06136867,2034.7,2033.6,1.10981391]
[1772121608201,1.40448912,2034.6,2033.6,1.10981391]
[1772121608899,1.4009211,2034.6,2033.6,1.10981391]
[1772121609104,1.4009211,2034.6,2033.0,0.00601982]
[1772121609105,1.15874912,2034.3,2033.4,1.10981391]
[1772121609311,1.15874912,2034.6,2033.4,1.10981391]
[1772121609810,5.46734833,2034.7,2033.4,1.10981391]
[1772121610010,1.16024966,2034.6,2033.4,1.10981391]
[1772121610212,1.16024966,2034.4,2033.4,1.10981391]
[1772121612011,1.16024966,2034.2,2033.0,1.22901169]
[1772121612210,1.16024966,2034.0,2033.0,1.22901169]
[1772121612904,1.16024966,2033.8,2033.0,0.00601982]
[1772121613110,6.04677,2034.1,2033.0,0.00601982]
[1772121613111,1.16024966,2033.6,2033.0,0.00601982]
[1772121613511,1.16024966,2034.1,2033.0,1.22901169]
[1772121613714,10.71618323,2034.4,2033.0,1.22901169]
[1772121613715,1.16024966,2034.3,2033.0,1.22901169]
[1772121614709,1.16024966,2034.6,2033.0,1.22901169]
[1772121614906,1.16024966,2034.4,2033.0,1.22901169]
[1772121615613,1.16024966,2034.4,2033.2,1.22299187]
[1772121616013,1.16024966,2034.6,2033.2,1.22299187]
[1772121616718,4.06136867,2034.7,2033.4,1.22299187]
[1772121617011,4.06136867,2034.7,2033.6,1.22299187]
[1772121617610,7.10379832,2035.0,2034.2,1.22299187]
[1772121618319,1.16024966,2034.9,2034.2,1.22299187]
[1772121618818,1.16395064,2034.9,2034.2,1.22299187]
[1772121619014,0.00370098,2034.9,2034.2,1.22299187]
[1772121620015,4.9218712,2035.0,2034.3,0.24577]
[1772121620214,4.6096793,2035.0,2034.3,0.24577]
[1772121620416,4.6096793,2035.0,2034.3,7.17877]
[1772121620615,4.6096793,2035.0,2033.7,10.47582449]
[1772121620815,4.6096793,2035.0,2033.9,0.15477119]
[1772121621217,4.61435245,2035.0,2033.9,0.15477119]
[1772121621420,5.83400239,2035.0,2034.1,0.15477119]
[1772121622118,4.61435245,2035.0,2034.1,0.15477119]
[1772121622816,4.61435245,2035.0,2034.3,0.07150355]
[1772121625922,4.45908931,2035.0,2034.4,0.24576]
[1772121626124,3.94952931,2035.0,2034.4,0.24576]
[1772121626324,1.32499539,2035.6,2034.5,5.5744658]
[1772121626525,3.39613931,2035.5,2034.6,6.918]
[1772121626725,3.39613931,2035.5,2034.7,0.20402016]
[1772121626927,0.1,2035.6,2034.8,0.24571]
[1772121627227,0.1,2035.6,2034.9,6.916]
[1772121627228,3.02021505,2035.6,2034.9,6.916]
[1772121627428,3.02473505,2035.6,2034.8,0.25179625]
[1772121627627,1.32700547,2035.4,2034.8,0.00608625]
[1772121628024,1.32749572,2035.2,2034.1,6.915]
[1772121628424,2.92021505,2035.1,2034.2,0.24578]
[1772121628729,1.32749572,2035.3,2034.2,5.49108377]
[1772121629229,2.92021505,2035.3,2034.2,5.49461564]
[1772121629430,2.77371432,2035.3,2034.6,0.24573]
[1772121630027,1.33449663,2035.5,2034.6,0.24573]
[1772121630222,2.77371432,2035.4,2034.6,0.24573]
[1772121630428,2.87823432,2035.6,2034.6,0.24573]
[1772121630832,4.11294143,2035.5,2034.7,6.91]
[1772121631132,2.26064914,2035.5,2034.8,0.24571]
[1772121631528,0.10452,2035.6,2034.8,0.24571]
[1772121631726,0.10452,2035.6,2034.9,6.909]
[1772121631727,2.26064914,2035.5,2034.9,6.909]
[1772121631930,2.26064914,2035.5,2034.6,6.908]
[1772121631931,3.60019929,2035.5,2034.6,6.908]
[1772121632231,1.33955015,2035.4,2034.4,6.331]
[1772121632428,1.33955015,2035.4,2034.5,6.909]
[1772121632631,1.33955015,2035.2,2034.2,0.00353187]
[1772121633024,1.33906466,2035.0,2034.2,0.00353187]
[1772121634337,2.26064914,2034.9,2034.2,0.24931187]
[1772121634534,1.34003054,2035.1,2034.2,0.24931187]
[1772121634731,3.60067968,2035.1,2034.2,0.24931187]
[1772121635531,2.26064914,2035.0,2034.2,0.24931187]
[1772121635742,2.25272134,2035.0,2034.2,0.24931187]
[1772121636442,0.10452,2035.6,2034.6,0.24573]
[1772121636443,1.44028256,2035.6,2034.6,0.24573]
[1772121636741,1.33576256,2035.4,2034.6,0.24573]
[1772121636944,1.33576256,2035.4,2034.2,6.33453187]
[1772121637134,1.33552797,2035.2,2034.3,6.898]
[1772121637442,3.06140931,2035.5,2034.4,0.24576]
[1772121637943,1.72588134,2035.5,2034.8,0.24571]
[1772121638444,1.33755787,2035.4,2034.3,13.47476]
[1772121638639,1.33755787,2035.4,2034.2,0.00353187]
[1772121638640,0.24565,2035.3,2034.2,0.00353187]
[1772121638841,1.33900462,2035.0,2034.2,0.00353187]
[1772121639433,1.33900462,2034.8,2033.6,6.896]